[Event "Titled Tuesday Blitz September 21 2021"]
[White "Mustafayev, Farid"]
[Black "Begunov, Konstantin"]
[WhiteFideId "13408771"]
[BlackFideId "4118510"]
[WhiteElo "2097"]
[BlackElo "2262"]
[Result "0-1"]
[Round "03"]
[TimeControl "180+1"]
[Date "2021.09.21"]
[WhiteClock "0:00:27"]
[BlackClock "0:00:19"]

1. d4 {[%clk 0:03:00]}  d5 {[%clk 0:02:59]} 2. c4 {[%clk 0:03:01]}  c6 {[%clk 0:02:59]} 3. Nc3 {[%clk 0:03:01]}  Nf6 {[%clk 0:03:00]} 4. Nf3 {[%clk 0:03:01]}  dxc4 {[%clk 0:02:59]} 5. a4 {[%clk 0:02:59]}  Bg4 {[%clk 0:03:00]} 6. Ne5 {[%clk 0:02:58]}  Bh5 {[%clk 0:03:00]} 7. f3 {[%clk 0:02:55]}  Nfd7 {[%clk 0:02:59]} 8. Nxc4 {[%clk 0:02:54]}  e5 {[%clk 0:02:59]} 9. dxe5 {[%clk 0:02:50]}  Qh4+ {[%clk 0:02:59]} 10. g3 {[%clk 0:02:40]}  Qxc4 {[%clk 0:03:00]} 11. e3 {[%clk 0:02:39]}  Qb4 {[%clk 0:02:58]} 12. h4 {[%clk 0:02:35]}  Nxe5 {[%clk 0:02:49]} 13. g4 {[%clk 0:02:35]}  Nxf3+ {[%clk 0:02:26]} 14. Qxf3 {[%clk 0:02:34]}  Bxg4 {[%clk 0:02:27]} 15. Qg2 {[%clk 0:02:26]}  h5 {[%clk 0:02:06]} 16. Bd3 {[%clk 0:02:24]}  Nd7 {[%clk 0:02:00]} 17. Bd2 {[%clk 0:02:22]}  Ne5 {[%clk 0:01:51]} 18. Be2 {[%clk 0:02:12]}  Qxb2 {[%clk 0:01:30]} 19. Rb1 {[%clk 0:02:10]}  Qc2 {[%clk 0:01:27]} 20. Rxb7 {[%clk 0:01:46]}  O-O-O {[%clk 0:01:16]} 21. Ba6 {[%clk 0:00:59]}  Nf3+ {[%clk 0:00:50]} 22. Kf2 {[%clk 0:00:53]}  Rxd2+ {[%clk 0:00:48]} 23. Ne2 {[%clk 0:00:53]}  Rxe2+ {[%clk 0:00:41]} 24. Bxe2 {[%clk 0:00:54]}  Kxb7 {[%clk 0:00:40]} 25. Rd1 {[%clk 0:00:52]}  Bc5 {[%clk 0:00:36]} 26. Kf1 {[%clk 0:00:48]}  Qe4 {[%clk 0:00:24]} 27. Bd3 {[%clk 0:00:45]}  Qxe3 {[%clk 0:00:22]} 28. Be2 {[%clk 0:00:33]}  Re8 {[%clk 0:00:20]} 29. Rb1+ {[%clk 0:00:27]}  Ka8 {[%clk 0:00:19]} 0-1


[Site "https://www.chess.com"]

[Event "Titled Tuesday Blitz September 21 2021"]
[White "Nazaretyan, Tigran"]
[Black "Novikova, Galina"]
[WhiteFideId "24162345"]
[BlackFideId "4157095"]
[WhiteElo "2212"]
[BlackElo "1844"]
[Result "1-0"]
[Round "03"]
[TimeControl "180+1"]
[Date "2021.09.21"]
[WhiteClock "0:00:28"]
[BlackClock "0:00:05"]

1. d4 {[%clk 0:03:00]}  d5 {[%clk 0:02:57]} 2. c4 {[%clk 0:02:59]}  e5 {[%clk 0:02:57]} 3. dxe5 {[%clk 0:02:58]}  d4 {[%clk 0:02:58]} 4. Nf3 {[%clk 0:02:58]}  Nc6 {[%clk 0:02:57]} 5. a3 {[%clk 0:02:58]}  Nge7 {[%clk 0:02:54]} 6. b4 {[%clk 0:02:53]}  Ng6 {[%clk 0:02:54]} 7. Bb2 {[%clk 0:02:49]}  a5 {[%clk 0:02:55]} 8. b5 {[%clk 0:02:48]}  Ncxe5 {[%clk 0:02:55]} 9. Nxe5 {[%clk 0:02:48]}  Nxe5 {[%clk 0:02:56]} 10. e3 {[%clk 0:02:46]}  c5 {[%clk 0:02:25]} 11. exd4 {[%clk 0:02:39]}  cxd4 {[%clk 0:02:24]} 12. Qxd4 {[%clk 0:02:39]}  Bd6 {[%clk 0:01:59]} 13. c5 {[%clk 0:02:37]}  Bc7 {[%clk 0:01:50]} 14. Qxd8+ {[%clk 0:02:34]}  Kxd8 {[%clk 0:01:51]} 15. Nc3 {[%clk 0:02:08]}  Be6 {[%clk 0:01:48]} 16. Rd1+ {[%clk 0:02:01]}  Ke7 {[%clk 0:01:46]} 17. b6 {[%clk 0:01:55]}  Bb8 {[%clk 0:01:40]} 18. Nd5+ {[%clk 0:01:53]}  Bxd5 {[%clk 0:01:40]} 19. Rxd5 {[%clk 0:01:53]}  f6 {[%clk 0:01:36]} 20. Bb5 {[%clk 0:01:48]}  Rd8 {[%clk 0:01:27]} 21. Rxd8 {[%clk 0:01:44]}  Kxd8 {[%clk 0:01:28]} 22. Ke2 {[%clk 0:01:39]}  Nc6 {[%clk 0:01:17]} 23. Rd1+ {[%clk 0:01:31]}  Ke7 {[%clk 0:01:16]} 24. Bxc6 {[%clk 0:01:25]}  bxc6 {[%clk 0:01:17]} 25. g3 {[%clk 0:01:25]}  a4 {[%clk 0:01:11]} 26. f4 {[%clk 0:01:24]}  Ra5 {[%clk 0:01:08]} 27. Bc3 {[%clk 0:01:21]}  Ra8 {[%clk 0:00:58]} 28. Kf3 {[%clk 0:01:17]}  h6 {[%clk 0:00:49]} 29. Kg4 {[%clk 0:01:14]}  g6 {[%clk 0:00:47]} 30. Rd2 {[%clk 0:01:06]}  h5+ {[%clk 0:00:47]} 31. Kf3 {[%clk 0:01:06]}  Ra6 {[%clk 0:00:42]} 32. Ke4 {[%clk 0:01:02]}  Ra8 {[%clk 0:00:35]} 33. Rd4 {[%clk 0:00:55]}  Ra6 {[%clk 0:00:24]} 34. Kd3 {[%clk 0:00:54]}  Ra8 {[%clk 0:00:24]} 35. h4 {[%clk 0:00:53]}  g5 {[%clk 0:00:22]} 36. Ke4 {[%clk 0:00:49]}  gxh4 {[%clk 0:00:22]} 37. gxh4 {[%clk 0:00:49]}  Ra6 {[%clk 0:00:09]} 38. Kf5 {[%clk 0:00:49]}  Ra8 {[%clk 0:00:08]} 39. Re4+ {[%clk 0:00:45]}  Kf7 {[%clk 0:00:08]} 40. Bxf6 {[%clk 0:00:42]}  Ra5 {[%clk 0:00:05]} 41. Bd4 {[%clk 0:00:35]}  Rb5 {[%clk 0:00:06]} 42. Kg5 {[%clk 0:00:32]}  Rb3 {[%clk 0:00:05]} 43. Re3 {[%clk 0:00:31]}  Rb1 {[%clk 0:00:05]} 44. Kxh5 {[%clk 0:00:31]}  Rf1 {[%clk 0:00:03]} 45. Be5 {[%clk 0:00:30]}  Bxe5 {[%clk 0:00:01]} 46. fxe5 {[%clk 0:00:31]}  Rf5+ {[%clk 0:00:01]} 47. Kg4 {[%clk 0:00:30]}  Rf1 {[%clk 0:00:02]} 48. e6+ {[%clk 0:00:30]}  Ke7 {[%clk 0:00:02]} 49. h5 {[%clk 0:00:31]}  Rc1 {[%clk 0:00:02]} 50. h6 {[%clk 0:00:30]}  Rh1 {[%clk 0:00:02]} 51. Rh3 {[%clk 0:00:29]}  Rg1+ {[%clk 0:00:02]} 52. Kf5 {[%clk 0:00:29]}  Rf1+ {[%clk 0:00:02]} 53. Ke4 {[%clk 0:00:29]}  Re1+ {[%clk 0:00:01]} 54. Kd3 {[%clk 0:00:28]}  Rd1+ {[%clk 0:00:01]} 55. Kc2 {[%clk 0:00:29]}  Rd8 {[%clk 0:00:02]} 56. h7 {[%clk 0:00:29]}  Rh8 {[%clk 0:00:03]} 57. Rh6 {[%clk 0:00:29]}  Kf8 {[%clk 0:00:02]} 58. Kc3 {[%clk 0:00:27]}  Kg7 {[%clk 0:00:03]} 59. Rh5 {[%clk 0:00:27]}  Kf6 {[%clk 0:00:03]} 60. Rh6+ {[%clk 0:00:28]}  Kg7 {[%clk 0:00:03]} 61. Rh1 {[%clk 0:00:27]}  Kf6 {[%clk 0:00:04]} 62. b7 {[%clk 0:00:28]}  Kxe6 {[%clk 0:00:04]} 63. b8=Q {[%clk 0:00:28]}  Rxb8 {[%clk 0:00:04]} 64. h8=Q {[%clk 0:00:28]}  Rxh8 {[%clk 0:00:05]} 65. Rxh8 {[%clk 0:00:28]} 1-0


[Site "https://www.chess.com"]

[Event "Titled Tuesday Blitz September 21 2021"]
[White "Nenezic, Marko"]
[Black "Boros, Denes"]
[WhiteFideId "912123"]
[BlackFideId "722340"]
[WhiteElo "2481"]
[BlackElo "2464"]
[Result "1-0"]
[Round "03"]
[TimeControl "180+1"]
[Date "2021.09.21"]
[WhiteClock "0:01:04"]
[BlackClock "0:01:15"]

1. Nf3 {[%clk 0:03:00]}  g6 {[%clk 0:03:00]} 2. c4 {[%clk 0:03:00]}  Bg7 {[%clk 0:03:01]} 3. d4 {[%clk 0:03:01]}  d6 {[%clk 0:03:01]} 4. e4 {[%clk 0:03:01]}  Bg4 {[%clk 0:03:01]} 5. Be2 {[%clk 0:03:01]}  Nc6 {[%clk 0:03:01]} 6. Nbd2 {[%clk 0:03:01]}  e6 {[%clk 0:03:01]} 7. h3 {[%clk 0:03:00]}  Bxf3 {[%clk 0:03:01]} 8. Nxf3 {[%clk 0:03:01]}  Nge7 {[%clk 0:03:02]} 9. O-O {[%clk 0:03:00]}  O-O {[%clk 0:03:02]} 10. d5 {[%clk 0:03:00]}  exd5 {[%clk 0:03:02]} 11. cxd5 {[%clk 0:02:58]}  Nb8 {[%clk 0:02:56]} 12. Qb3 {[%clk 0:02:48]}  Nd7 {[%clk 0:02:57]} 13. Qxb7 {[%clk 0:02:47]}  Nc5 {[%clk 0:02:53]} 14. Qb4 {[%clk 0:02:47]}  Rb8 {[%clk 0:02:44]} 15. Qc4 {[%clk 0:02:42]}  c6 {[%clk 0:02:44]} 16. Nd4 {[%clk 0:02:28]}  cxd5 {[%clk 0:02:40]} 17. exd5 {[%clk 0:02:29]}  Qa5 {[%clk 0:02:28]} 18. Nc6 {[%clk 0:02:19]}  Nxc6 {[%clk 0:02:28]} 19. dxc6 {[%clk 0:02:20]}  Rb4 {[%clk 0:02:20]} 20. Bd2 {[%clk 0:02:03]}  Rxc4 {[%clk 0:02:19]} 21. Bxa5 {[%clk 0:02:04]}  Rc2 {[%clk 0:02:18]} 22. Bf3 {[%clk 0:02:02]}  Bxb2 {[%clk 0:02:17]} 23. Rad1 {[%clk 0:01:59]}  Ne6 {[%clk 0:02:13]} 24. Rxd6 {[%clk 0:01:49]}  h5 {[%clk 0:01:47]} 25. Rfd1 {[%clk 0:01:41]}  Ba3 {[%clk 0:01:40]} 26. R6d3 {[%clk 0:01:22]}  Rxa2 {[%clk 0:01:33]} 27. Bd5 {[%clk 0:01:20]}  Rc2 {[%clk 0:01:16]} 28. Rxa3 {[%clk 0:01:16]}  Nf4 {[%clk 0:01:17]} 29. Bf3 {[%clk 0:01:14]}  h4 {[%clk 0:01:17]} 30. Rc3 {[%clk 0:01:09]}  Ra2 {[%clk 0:01:17]} 31. Bc7 {[%clk 0:01:07]}  Ne6 {[%clk 0:01:16]} 32. Be5 {[%clk 0:01:07]}  Ra5 {[%clk 0:01:16]} 33. Rd5 {[%clk 0:01:07]}  Ra1+ {[%clk 0:01:15]} 34. Kh2 {[%clk 0:01:07]}  f6 {[%clk 0:01:16]} 35. Rd6 {[%clk 0:01:04]}  Re8 {[%clk 0:01:15]} 1-0


[Site "https://www.chess.com"]

[Event "Titled Tuesday Blitz September 21 2021"]
[White "Obolentseva, Alexandra"]
[Black "Makhnev, Denis"]
[WhiteFideId "24153648"]
[BlackFideId "13707647"]
[WhiteElo "2113"]
[BlackElo "2537"]
[Result "0-1"]
[Round "03"]
[TimeControl "180+1"]
[Date "2021.09.21"]
[WhiteClock "0:00:43"]
[BlackClock "0:01:58"]

1. d4 {[%clk 0:03:00]}  d5 {[%clk 0:02:59]} 2. c4 {[%clk 0:03:01]}  c6 {[%clk 0:02:59]} 3. Nf3 {[%clk 0:03:00]}  Nf6 {[%clk 0:03:00]} 4. Nc3 {[%clk 0:02:57]}  e6 {[%clk 0:03:00]} 5. Bg5 {[%clk 0:02:55]}  h6 {[%clk 0:02:59]} 6. Bh4 {[%clk 0:02:54]}  dxc4 {[%clk 0:02:58]} 7. e4 {[%clk 0:02:51]}  g5 {[%clk 0:02:58]} 8. Bg3 {[%clk 0:02:38]}  b5 {[%clk 0:02:59]} 9. a3 {[%clk 0:02:36]}  Bb7 {[%clk 0:02:57]} 10. Be2 {[%clk 0:02:33]}  Nbd7 {[%clk 0:02:57]} 11. O-O {[%clk 0:02:32]}  Nh5 {[%clk 0:02:55]} 12. Nxg5 {[%clk 0:02:11]}  Nxg3 {[%clk 0:02:47]} 13. Nxf7 {[%clk 0:02:10]}  Nxe2+ {[%clk 0:02:47]} 14. Qxe2 {[%clk 0:02:11]}  Kxf7 {[%clk 0:02:46]} 15. f4 {[%clk 0:02:08]}  Bg7 {[%clk 0:02:43]} 16. Rad1 {[%clk 0:02:07]}  Rf8 {[%clk 0:02:31]} 17. f5 {[%clk 0:02:02]}  exf5 {[%clk 0:02:30]} 18. exf5 {[%clk 0:01:48]}  Kg8 {[%clk 0:02:29]} 19. Qe6+ {[%clk 0:01:42]}  Kh8 {[%clk 0:02:27]} 20. Ne4 {[%clk 0:01:13]}  Qe8 {[%clk 0:02:22]} 21. Nd6 {[%clk 0:01:11]}  Qxe6 {[%clk 0:02:13]} 22. fxe6 {[%clk 0:01:12]}  Rxf1+ {[%clk 0:02:13]} 23. Kxf1 {[%clk 0:01:11]}  Bc8 {[%clk 0:02:01]} 24. Nxc8 {[%clk 0:00:51]}  Rxc8 {[%clk 0:02:00]} 25. exd7 {[%clk 0:00:51]}  Rd8 {[%clk 0:02:00]} 26. a4 {[%clk 0:00:44]}  Rxd7 {[%clk 0:01:57]} 27. axb5 {[%clk 0:00:43]}  cxb5 {[%clk 0:01:58]} 0-1


[Site "https://www.chess.com"]

[Event "Titled Tuesday Blitz September 21 2021"]
[White "Onyshchuk, Volodymyr"]
[Black "Derraugh, Geordie"]
[WhiteFideId "14114038"]
[BlackFideId "2603950"]
[WhiteElo "2603"]
[BlackElo "2116"]
[Result "1-0"]
[Round "03"]
[TimeControl "180+1"]
[Date "2021.09.21"]
[WhiteClock "0:00:45"]
[BlackClock "0:00:04"]

1. e4 {[%clk 0:03:00]}  e5 {[%clk 0:02:58]} 2. Nf3 {[%clk 0:03:00]}  Nc6 {[%clk 0:02:59]} 3. Bc4 {[%clk 0:03:00]}  Bc5 {[%clk 0:02:58]} 4. d3 {[%clk 0:02:58]}  d6 {[%clk 0:02:56]} 5. c3 {[%clk 0:02:55]}  h6 {[%clk 0:02:54]} 6. b4 {[%clk 0:02:51]}  Bb6 {[%clk 0:02:54]} 7. Nbd2 {[%clk 0:02:51]}  Nf6 {[%clk 0:02:53]} 8. Bb3 {[%clk 0:02:50]}  O-O {[%clk 0:02:52]} 9. Nc4 {[%clk 0:02:26]}  Bg4 {[%clk 0:02:45]} 10. h3 {[%clk 0:02:21]}  Bxf3 {[%clk 0:02:31]} 11. Qxf3 {[%clk 0:02:21]}  Re8 {[%clk 0:02:28]} 12. O-O {[%clk 0:02:14]}  d5 {[%clk 0:02:23]} 13. Nxb6 {[%clk 0:02:11]}  dxe4 {[%clk 0:02:21]} 14. dxe4 {[%clk 0:02:10]}  axb6 {[%clk 0:02:21]} 15. a4 {[%clk 0:02:03]}  Qe7 {[%clk 0:02:20]} 16. Ba3 {[%clk 0:01:59]}  Qd7 {[%clk 0:01:23]} 17. Rad1 {[%clk 0:01:58]}  Qc8 {[%clk 0:01:23]} 18. Bc1 {[%clk 0:01:57]}  Kh7 {[%clk 0:01:07]} 19. Bxf7 {[%clk 0:01:52]}  Rf8 {[%clk 0:01:07]} 20. Bb3 {[%clk 0:01:51]}  Qe8 {[%clk 0:01:02]} 21. Rd3 {[%clk 0:01:33]}  Nh5 {[%clk 0:01:00]} 22. Qg4 {[%clk 0:01:33]}  Nf4 {[%clk 0:00:57]} 23. Rg3 {[%clk 0:01:26]}  g6 {[%clk 0:00:48]} 24. Rd1 {[%clk 0:01:24]}  h5 {[%clk 0:00:40]} 25. Qd7+ {[%clk 0:01:15]}  Kh6 {[%clk 0:00:22]} 26. Qxc7 {[%clk 0:01:15]}  Rf6 {[%clk 0:00:12]} 27. Rd7 {[%clk 0:01:12]}  Qh8 {[%clk 0:00:10]} 28. Rf7 {[%clk 0:01:06]}  Rf8 {[%clk 0:00:09]} 29. Rxf8 {[%clk 0:01:02]}  Qxf8 {[%clk 0:00:09]} 30. Qxb7 {[%clk 0:01:00]}  g5 {[%clk 0:00:09]} 31. Bxf4 {[%clk 0:00:56]}  gxf4 {[%clk 0:00:08]} 32. Rg8 {[%clk 0:00:55]}  Qe7 {[%clk 0:00:05]} 33. Qxe7 {[%clk 0:00:48]}  Nxe7 {[%clk 0:00:06]} 34. Re8 {[%clk 0:00:48]}  Ng6 {[%clk 0:00:06]} 35. Re6 {[%clk 0:00:46]}  Rxe6 {[%clk 0:00:03]} 36. Bxe6 {[%clk 0:00:46]}  f3 {[%clk 0:00:03]} 37. g3 {[%clk 0:00:45]}  Nf4 {[%clk 0:00:04]} 38. gxf4 {[%clk 0:00:45]} 1-0


[Site "https://www.chess.com"]

[Event "Titled Tuesday Blitz September 21 2021"]
[White "Pakleza, Zbigniew"]
[Black "Erdogmus, Yagiz Kaan"]
[WhiteFideId "1119290"]
[BlackFideId "44599790"]
[WhiteElo "2526"]
[BlackElo "1783"]
[Result "0-1"]
[Round "03"]
[TimeControl "180+1"]
[Date "2021.09.21"]
[WhiteClock "0:00:57"]
[BlackClock "0:00:29"]

1. d4 {[%clk 0:03:00]}  Nf6 {[%clk 0:02:59]} 2. Bf4 {[%clk 0:03:00]}  g6 {[%clk 0:02:58]} 3. e3 {[%clk 0:03:01]}  Bg7 {[%clk 0:02:58]} 4. Nf3 {[%clk 0:03:02]}  O-O {[%clk 0:02:58]} 5. Be2 {[%clk 0:03:02]}  d6 {[%clk 0:02:59]} 6. h3 {[%clk 0:03:02]}  c5 {[%clk 0:02:57]} 7. c3 {[%clk 0:03:03]}  Qb6 {[%clk 0:02:57]} 8. Qb3 {[%clk 0:03:02]}  Be6 {[%clk 0:02:57]} 9. Qxb6 {[%clk 0:03:03]}  axb6 {[%clk 0:02:58]} 10. a3 {[%clk 0:03:04]}  Nc6 {[%clk 0:02:58]} 11. Nbd2 {[%clk 0:03:04]}  Na5 {[%clk 0:02:57]} 12. O-O {[%clk 0:03:04]}  Rfc8 {[%clk 0:02:53]} 13. Rfe1 {[%clk 0:02:59]}  Nb3 {[%clk 0:02:35]} 14. Nxb3 {[%clk 0:02:59]}  Bxb3 {[%clk 0:02:35]} 15. Bd3 {[%clk 0:02:57]}  Nd5 {[%clk 0:02:27]} 16. Bg3 {[%clk 0:02:56]}  c4 {[%clk 0:02:23]} 17. Be4 {[%clk 0:02:55]}  Ra5 {[%clk 0:02:24]} 18. Nd2 {[%clk 0:02:54]}  Ba4 {[%clk 0:02:15]} 19. Nxc4 {[%clk 0:02:26]}  Rxc4 {[%clk 0:02:14]} 20. b4 {[%clk 0:02:26]}  Rb5 {[%clk 0:01:45]} 21. Bd3 {[%clk 0:02:19]}  Rxc3 {[%clk 0:01:45]} 22. Bxb5 {[%clk 0:02:19]}  Bxb5 {[%clk 0:01:45]} 23. Rec1 {[%clk 0:02:11]}  f5 {[%clk 0:01:42]} 24. Kh2 {[%clk 0:02:03]}  Bc6 {[%clk 0:01:34]} 25. Rxc3 {[%clk 0:01:54]}  Nxc3 {[%clk 0:01:35]} 26. f3 {[%clk 0:01:55]}  e5 {[%clk 0:01:23]} 27. dxe5 {[%clk 0:01:53]}  dxe5 {[%clk 0:01:24]} 28. Be1 {[%clk 0:01:52]}  Nd5 {[%clk 0:01:22]} 29. Bd2 {[%clk 0:01:47]}  b5 {[%clk 0:01:19]} 30. Rd1 {[%clk 0:01:41]}  Nb6 {[%clk 0:01:13]} 31. Bc1 {[%clk 0:01:39]}  Bf6 {[%clk 0:01:12]} 32. Kg3 {[%clk 0:01:38]}  Nc4 {[%clk 0:01:12]} 33. Kf2 {[%clk 0:01:39]}  Kf7 {[%clk 0:01:12]} 34. g4 {[%clk 0:01:38]}  Ke6 {[%clk 0:01:12]} 35. gxf5+ {[%clk 0:01:37]}  gxf5 {[%clk 0:01:13]} 36. Rg1 {[%clk 0:01:36]}  Kf7 {[%clk 0:01:11]} 37. Ke2 {[%clk 0:01:35]}  e4 {[%clk 0:01:11]} 38. f4 {[%clk 0:01:32]}  Nb2 {[%clk 0:01:06]} 39. Bxb2 {[%clk 0:01:20]}  Bxb2 {[%clk 0:01:07]} 40. Rb1 {[%clk 0:01:20]}  Bf6 {[%clk 0:01:05]} 41. Kd2 {[%clk 0:01:16]}  Bd5 {[%clk 0:00:59]} 42. Kc2 {[%clk 0:01:17]}  Bc4 {[%clk 0:00:58]} 43. Rd1 {[%clk 0:01:15]}  Bd3+ {[%clk 0:00:58]} 44. Kb3 {[%clk 0:01:16]}  Bh4 {[%clk 0:00:56]} 45. Rc1 {[%clk 0:01:14]}  Bc4+ {[%clk 0:00:54]} 46. Kc3 {[%clk 0:01:14]}  Bf6+ {[%clk 0:00:53]} 47. Kc2 {[%clk 0:01:13]}  Ke6 {[%clk 0:00:53]} 48. Kd2 {[%clk 0:01:10]}  Bb2 {[%clk 0:00:43]} 49. Rb1 {[%clk 0:01:08]}  Bf6 {[%clk 0:00:43]} 50. Rc1 {[%clk 0:01:08]}  Kd5 {[%clk 0:00:42]} 51. Rg1 {[%clk 0:01:07]}  Bb2 {[%clk 0:00:40]} 52. Kc2 {[%clk 0:01:06]}  Bf6 {[%clk 0:00:39]} 53. Rg8 {[%clk 0:01:04]}  Bd3+ {[%clk 0:00:39]} 54. Kb3 {[%clk 0:01:04]}  Be2 {[%clk 0:00:37]} 55. Kc2 {[%clk 0:01:05]}  Bd3+ {[%clk 0:00:31]} 56. Kb3 {[%clk 0:01:05]}  Bf1 {[%clk 0:00:32]} 57. h4 {[%clk 0:01:00]}  Bxh4 {[%clk 0:00:31]} 58. Rh8 {[%clk 0:01:01]}  Bf2 {[%clk 0:00:29]} 59. Rxh7 {[%clk 0:01:00]}  Bxe3 {[%clk 0:00:29]} 60. Rxb7 {[%clk 0:01:00]}  Bxf4 {[%clk 0:00:29]} 61. a4 {[%clk 0:00:59]}  Bc4+ {[%clk 0:00:29]} 62. Ka3 {[%clk 0:00:57]}  Bc1# {[%clk 0:00:29]} 0-1


[Site "https://www.chess.com"]

[Event "Titled Tuesday Blitz September 21 2021"]
[White "Perez Gormaz, Matias"]
[Black "Visakh N R"]
[WhiteFideId "3406342"]
[BlackFideId "25012223"]
[WhiteElo "2352"]
[BlackElo "2454"]
[Result "0-1"]
[Round "03"]
[TimeControl "180+1"]
[Date "2021.09.21"]
[WhiteClock "0:00:04"]
[BlackClock "0:00:09"]

1. e4 {[%clk 0:03:00]}  c6 {[%clk 0:02:59]} 2. d4 {[%clk 0:02:59]}  d5 {[%clk 0:03:00]} 3. e5 {[%clk 0:03:00]}  Bf5 {[%clk 0:02:59]} 4. h4 {[%clk 0:03:00]}  h6 {[%clk 0:02:58]} 5. g4 {[%clk 0:03:00]}  Be4 {[%clk 0:02:53]} 6. f3 {[%clk 0:02:57]}  Bh7 {[%clk 0:02:53]} 7. e6 {[%clk 0:02:57]}  fxe6 {[%clk 0:02:52]} 8. Bd3 {[%clk 0:02:57]}  Bxd3 {[%clk 0:02:49]} 9. Qxd3 {[%clk 0:02:58]}  Nf6 {[%clk 0:02:49]} 10. Qg6+ {[%clk 0:02:54]}  Kd7 {[%clk 0:02:48]} 11. Ne2 {[%clk 0:02:43]}  Na6 {[%clk 0:02:46]} 12. c3 {[%clk 0:02:35]}  Nc7 {[%clk 0:02:11]} 13. Bf4 {[%clk 0:02:33]}  Qe8 {[%clk 0:02:10]} 14. Qc2 {[%clk 0:02:31]}  Qf7 {[%clk 0:02:10]} 15. Nd2 {[%clk 0:02:28]}  Nfe8 {[%clk 0:02:09]} 16. Nb3 {[%clk 0:02:16]}  Kc8 {[%clk 0:02:06]} 17. O-O-O {[%clk 0:02:14]}  a5 {[%clk 0:02:03]} 18. Nc5 {[%clk 0:01:57]}  g6 {[%clk 0:01:56]} 19. Qb3 {[%clk 0:01:30]}  b5 {[%clk 0:01:55]} 20. Rhe1 {[%clk 0:01:27]}  Bg7 {[%clk 0:01:54]} 21. Kb1 {[%clk 0:01:19]}  Na6 {[%clk 0:01:48]} 22. Nd3 {[%clk 0:01:07]}  Nd6 {[%clk 0:01:48]} 23. Be5 {[%clk 0:00:42]}  Nc4 {[%clk 0:01:39]} 24. Bxg7 {[%clk 0:00:40]}  Qxg7 {[%clk 0:01:40]} 25. Nef4 {[%clk 0:00:40]}  Nc7 {[%clk 0:01:35]} 26. Qc2 {[%clk 0:00:31]}  Qf6 {[%clk 0:01:25]} 27. Qc1 {[%clk 0:00:28]}  g5 {[%clk 0:01:21]} 28. hxg5 {[%clk 0:00:24]}  hxg5 {[%clk 0:01:22]} 29. Nh5 {[%clk 0:00:17]}  Qxf3 {[%clk 0:01:21]} 30. Qxg5 {[%clk 0:00:17]}  Kb7 {[%clk 0:01:11]} 31. Nhf4 {[%clk 0:00:12]}  Rh2 {[%clk 0:01:06]} 32. Qxe7 {[%clk 0:00:09]}  Rd2 {[%clk 0:00:28]} 33. Nc5+ {[%clk 0:00:08]}  Kb6 {[%clk 0:00:27]} 34. Nd7+ {[%clk 0:00:09]}  Ka6 {[%clk 0:00:28]} 35. Nc5+ {[%clk 0:00:09]}  Kb6 {[%clk 0:00:28]} 36. Nd7+ {[%clk 0:00:09]}  Ka7 {[%clk 0:00:25]} 37. Rxd2 {[%clk 0:00:04]}  Nxd2+ {[%clk 0:00:24]} 38. Ka1 {[%clk 0:00:04]}  Qxf4 {[%clk 0:00:21]} 39. Ne5 {[%clk 0:00:05]}  Kb7 {[%clk 0:00:11]} 40. Qc5 {[%clk 0:00:05]}  Ra6 {[%clk 0:00:11]} 41. g5 {[%clk 0:00:03]}  Ne4 {[%clk 0:00:11]} 42. Qe7 {[%clk 0:00:03]}  Qxg5 {[%clk 0:00:11]} 43. Qe8 {[%clk 0:00:03]}  Nxe8 {[%clk 0:00:10]} 44. Nd7 {[%clk 0:00:04]}  Qh4 {[%clk 0:00:09]} 45. Nc5+ {[%clk 0:00:04]} 0-1


[Site "https://www.chess.com"]